bitfinex/quotes_ETHUSD_20240828
["timestamp","ask_amount","ask_price","bid_price","bid_amount"]
[1724804766748,4.09536,2441.8,2440.9,0.91178004]
[1724804766956,4.09536,2441.8,2441.0,0.333288]
[1724804767169,0.09230497,2441.9,2441.1,0.08191458]
[1724804767326,0.09230497,2442.2,2441.2,2.4211]
[1724804767663,4.09406,2442.6,2441.5,5.87755378]
[1724804767664,4.18650497,2442.5,2441.5,5.87755378]
[1724804767811,4.09435,2442.4,2441.6,0.08189446]
[1724804768010,4.09405,2442.6,2441.6,0.91994928]
[1724804768236,0.09230497,2442.5,2441.6,3.91994928]
[1724804768527,0.09230497,2442.5,2441.6,3.83805482]
[1724804768784,0.09230497,2442.5,2441.4,2.4211]
[1724804768785,4.095,2442.0,2441.4,2.4211]
[1724804769072,4.09541,2441.8,2440.9,2.3093]
[1724804769229,4.18748497,2441.9,2441.0,0.08192199]
[1724804769426,4.09537,2441.8,2441.0,0.36205419]
[1724804769627,0.09230497,2441.7,2440.9,2.3093]
[1724804769832,4.09595,2441.5,2440.9,2.3093]
[1724804770099,4.09524,2441.9,2440.9,2.39122745]
[1724804770244,4.18722497,2442.1,2441.0,0.28832525]
[1724804770452,4.09502,2442.0,2441.1,0.08190654]
[1724804770652,4.09544,2441.8,2441.1,0.08190778]
[1724804770975,0.09230497,2441.9,2441.1,0.64986108]
[1724804771341,4.09535,2441.8,2441.1,0.5679533]
[1724804771640,0.09230497,2441.9,2441.2,0.46753947]
[1724804771850,3.0,2442.4,2441.2,0.46753947]
[1724804771851,0.09230497,2442.3,2441.2,0.46753947]
[1724804772151,4.18684497,2442.3,2441.3,2.2943]
[1724804772357,0.09230497,2442.2,2441.4,0.57618395]
[1724804772558,0.09230497,2442.2,2441.4,0.65808515]
[1724804772764,0.09230497,2442.2,2441.4,0.0819012]
[1724804772964,0.09230497,2442.2,2441.3,5.2943]
[1724804773188,0.09230497,2442.2,2441.4,0.0819012]
[1724804773386,4.09408,2442.6,2441.4,0.0819012]
[1724804773536,4.18657497,2442.5,2441.4,0.65808411]
[1724804773837,4.18657497,2442.5,2441.4,3.57618291]
[1724804773838,4.09495,2442.1,2441.4,3.57618291]
[1724804774037,0.09230497,2442.5,2441.4,3.57618291]
[1724804774038,4.09483,2442.2,2441.4,3.57618291]
[1724804774278,4.09434,2442.4,2441.5,0.66894952]
[1724804774574,0.09230497,2442.3,2441.6,0.0818952]
[1724804774872,4.09453,2442.3,2441.6,0.44878955]
[1724804775060,4.09434,2442.4,2441.6,0.44878955]
[1724804775372,0.09230497,2442.3,2441.6,0.44878955]
[1724804775580,4.18682497,2442.3,2441.6,0.44878955]
[1724804775747,4.18682497,2442.3,2441.6,0.36689435]
[1724804775748,4.09492,2442.1,2441.6,0.36689435]
[1724804776085,4.09459,2442.3,2441.6,0.44879571]
[1724804776254,0.09230497,2442.2,2441.6,0.36689435]
[1724804776455,4.48618497,2442.7,2441.3,2.2943]
[1724804776782,4.09445,2442.4,2441.4,0.08189963]
[1724804776956,4.09475,2442.2,2441.4,0.08189963]
[1724804777165,4.18684497,2442.3,2441.4,0.65808238]
[1724804777345,3.55,2442.6,2441.4,3.65808238]
[1724804777346,11.73821,2442.6,2441.4,3.65808238]
[1724804777540,4.09433,2442.4,2441.5,0.89523824]
[1724804777746,4.09433,2442.4,2441.6,0.08189462]
[1724804778081,4.18656497,2442.5,2441.6,0.08189462]
[1724804778283,0.09230497,2442.5,2441.6,0.47960791]
[1724804778487,4.09357,2442.9,2441.7,2.2758]
[1724804778779,4.09341,2443.0,2441.9,5.87755378]
[1724804778943,0.09230497,2442.9,2442.0,5.3512]
[1724804779147,4.18590497,2442.9,2442.1,0.08187864]
[1724804779406,4.09333,2443.0,2442.1,1.21294188]
[1724804779696,0.09230497,2443.4,2442.3,5.87755378]
[1724804779851,0.09230497,2443.5,2442.5,2.3512]
[1724804780190,4.09325,2443.1,2442.5,2.3512]
[1724804780394,4.09366,2442.8,2442.0,5.3512]
[1724804780586,4.09482,2442.2,2441.6,2.74891329]
[1724804780745,4.09461,2442.3,2441.6,2.3512]
[1724804780941,4.59558097,2442.7,2441.6,2.3512]
[1724804780942,4.09495,2442.1,2441.6,2.3512]
[1724804781168,4.18740497,2442.0,2441.6,2.3512]
[1724804781486,0.09230497,2442.0,2441.2,2.3512]
[1724804781655,0.09230497,2442.0,2441.3,0.86388538]
[1724804781857,4.18740497,2442.0,2441.3,0.86388538]
[1724804782378,4.09484,2442.1,2441.4,0.08190889]
[1724804782582,4.09433,2442.4,2441.4,0.08190889]
[1724804782745,0.09230497,2442.3,2441.4,0.41160832]
[1724804783602,4.09426,2442.5,2441.6,2.3041]
[1724804783801,4.09426,2442.5,2441.7,0.08189144]
[1724804785499,0.09230497,2442.6,2441.7,0.08189144]
[1724804785709,4.09418,2442.5,2441.7,0.08189144]
[1724804785867,4.18639497,2442.6,2441.7,1.20824596]
[1724804786070,4.09444,2442.4,2441.8,0.08189145]
[1724804786269,4.09442,2442.4,2441.8,0.08189145]
[1724804786465,4.18639497,2442.6,2441.8,0.08189145]
[1724804786677,0.09230497,2442.5,2441.8,0.73312605]
[1724804787274,4.18639497,2442.6,2441.8,0.73312605]
[1724804788008,0.09230497,2442.7,2441.8,0.73312605]
[1724804788381,0.09230497,2442.7,2442.0,2.3455]
[1724804788578,6.45175,2443.6,2442.0,5.3455]
[1724804788579,0.09230497,2442.9,2442.0,5.3455]
[1724804788779,4.09417,2442.5,2442.0,5.3455]
[1724804789124,0.09230497,2442.9,2441.3,0.4101]
[1724804789125,4.09511,2442.0,2441.3,0.4101]
[1724804789322,4.09524,2441.9,2441.3,1.03886538]
[1724804789470,0.03769765,2441.8,2441.3,1.03886538]
[1724804789667,4.22537262,2441.8,2441.3,0.4101]
[1724804789916,4.22537262,2441.8,2441.2,2.4399]
[1724804789917,4.22544262,2441.8,2441.2,2.4399]
[1724804790224,4.09556,2441.7,2441.2,2.4399]
[1724804790419,0.09230497,2441.6,2441.2,2.4399]
[1724804790570,4.09617,2441.4,2440.7,3.1481822]
[1724804790781,4.09626,2441.3,2440.7,2.76003108]
[1724804791003,0.09230497,2441.2,2440.7,2.76003108]
[1724804791534,0.09230497,2441.2,2439.9,1.70942824]
[1724804791535,4.09711,2440.8,2440.3,2.341]
[1724804791695,4.09711,2440.8,2439.9,5.57598418]
[1724804791696,0.09230497,2440.7,2439.9,5.57598418]
[1724804792021,0.09230497,2440.7,2439.7,3.42008893]
[1724804792022,0.03672419,2440.6,2440.0,0.64327664]
[1724804792318,0.03672419,2440.6,2439.7,2.341]
[1724804792319,0.03672419,2440.6,2440.3,5.88313718]
[1724804792485,4.09597,2441.5,2440.4,0.08194027]
[1724804792815,4.09595,2441.5,2440.5,2.4928]
[1724804792977,4.18825497,2441.5,2440.6,0.08192686]
[1724804793346,0.09230497,2441.5,2440.6,0.08192686]
[1724804793644,4.09536,2441.8,2440.7,1.42513289]
[1724804793779,4.09536,2441.8,2440.8,2.33772035]
[1724804793780,0.09230497,2441.8,2440.8,2.33772035]
[1724804793977,4.0958,2441.6,2440.9,0.44753951]
[1724804794294,0.09230497,2441.8,2441.0,0.08192419]
[1724804794478,9.97657718,2443.0,2441.0,0.08192419]
[1724804794479,4.09531,2441.9,2441.0,0.08192419]
[1724804794675,0.09230497,2441.8,2441.0,0.36045056]
[1724804795089,4.09567,2441.6,2441.0,0.36045056]
[1724804795417,4.0955,2441.7,2441.0,0.36045056]
[1724804795621,4.0955,2441.7,2440.8,2.2558]
[1724804795622,4.09594,2441.5,2440.8,2.2558]
[1724804795833,0.09230497,2441.6,2440.8,2.33772454]
[1724804795996,4.18798497,2441.6,2440.8,2.33772454]
[1724804796321,0.09230497,2441.6,2440.8,2.33772454]
[1724804796528,4.18798497,2441.6,2440.9,0.27478245]
[1724804796689,4.09587,2441.5,2440.9,0.27478245]
[1724804797049,0.09230497,2441.6,2440.9,0.27478245]
[1724804797615,4.18807497,2441.6,2440.9,0.27478245]
[1724804797815,0.09230497,2441.6,2440.9,0.27478245]
[1724804798119,0.09230497,2441.8,2441.0,0.08192684]
[1724804798305,4.18755497,2441.9,2441.0,0.08192684]
[1724804798623,7.09488,2442.1,2441.0,0.08192684]
[1724804798624,0.09230497,2442.0,2441.0,0.08192684]
[1724804798821,3.0,2442.0,2441.1,2.3666]
[1724804799126,3.0,2442.0,2441.2,0.24485268]
[1724804799127,4.09518,2441.9,2441.2,0.24485268]
[1724804799327,4.09572,2441.6,2441.1,2.3666]
[1724804799500,0.09230497,2441.5,2441.1,2.3666]
[1724804799698,4.09572,2441.6,2441.1,2.3666]
[1724804800238,4.09628,2441.3,2440.9,0.27478245]
[1724804800386,0.09230497,2441.5,2440.8,2.4985]
[1724804800387,8.19227,2441.4,2440.8,2.4985]
[1724804800589,0.09230497,2441.3,2440.8,2.4985]
[1724804800930,4.09635,2441.2,2440.8,2.4985]
[1724804801081,0.09230497,2441.1,2440.8,2.4985]
[1724804801280,4.09635,2441.2,2440.8,2.4985]
[1724804801281,0.09230497,2441.2,2440.8,2.4985]
[1724804801519,0.09230497,2441.6,2440.9,0.08192257]
[1724804801904,3.09230497,2441.8,2440.9,0.08192257]
[1724804802192,0.09230497,2441.7,2440.9,0.94645198]
[1724804802505,4.18789497,2441.7,2441.0,0.08191728]
[1724804802719,8.28349497,2441.7,2441.0,0.08191728]
[1724804803022,4.0962,2441.3,2440.8,3.08936]
[1724804803194,4.09652,2441.1,2440.8,3.08936]
[1724804803396,0.09230497,2441.0,2440.5,2.4985]
[1724804803999,0.09230497,2441.0,2440.0,2.4985]
[1724804804000,4.0971,2440.8,2440.0,2.4985]
[1724804804184,4.0971,2440.8,2440.1,0.83816372]
[1724804804185,0.09230497,2440.7,2440.1,0.83816372]
[1724804804391,4.18949497,2440.7,2440.1,0.83816372]
[1724804804697,0.09230497,2440.6,2440.1,0.83816372]
[1724804804890,0.09230497,2440.6,2440.0,2.4985]
[1724804806028,4.18968497,2440.6,2440.0,2.4985]
[1724804806324,0.09230497,2440.6,2440.0,2.4985]
[1724804806625,4.18968497,2440.6,2440.0,2.4985]
[1724804806989,4.18968497,2440.6,2440.0,2.78936]
[1724804806990,0.09230497,2440.6,2440.0,2.78936]
[1724804807227,4.09643,2441.2,2440.1,0.08195459]
[1724804807399,4.09693,2440.9,2440.0,2.78936]
[1724804807598,0.09230497,2440.8,2440.1,0.9902086]
[1724804808530,3.0,2441.1,2440.1,0.9902086]
[1724804808742,0.09230497,2441.1,2440.2,0.37795686]
[1724804809026,0.09230497,2441.1,2440.3,0.08193862]
[1724804809599,0.09230497,2441.1,2440.4,2.3026]
[1724804809901,0.09230497,2441.1,2440.5,0.08194027]
[1724804810099,0.09230497,2441.1,2440.5,0.3203943]
[1724804810711,4.09702,2440.8,2440.2,0.37795686]
[1724804810911,4.09702,2440.8,2440.1,3.21085972]
[1724804810912,4.09736,2440.6,2440.1,3.21085972]
[1724804811217,0.09230497,2440.7,2440.1,3.21085972]
[1724804811218,0.09230497,2440.7,2440.1,2.3026]
[1724804811637,3.0,2441.2,2440.2,0.08195534]
[1724804811638,7.0964,2441.2,2440.2,0.08195534]
[1724804811805,4.095,2442.0,2440.2,0.32041087]
[1724804811806,4.18889497,2441.1,2440.2,0.32041087]
[1724804811998,0.09230497,2441.0,2440.3,0.08194222]
[1724804812202,0.09230497,2441.0,2440.3,0.90209602]
[1724804812629,3.0,2441.4,2440.6,2.3845]
[1724804812630,7.09601,2441.4,2440.6,2.3845]
[1724804812818,0.09230497,2441.3,2440.7,0.08193263]
[1724804813018,0.09230497,2441.3,2440.7,0.87823666]
[1724804815146,0.09230497,2441.4,2440.8,0.0819345]
[1724804815348,0.09230497,2441.5,2440.8,0.70820835]
[1724804815642,0.09230497,2441.5,2440.8,6.28674863]
[1724804815937,0.0037794,2441.6,2440.9,0.70830527]
[1724804815938,0.09608437,2441.6,2440.9,0.70830527]
[1724804816101,0.0037794,2441.6,2441.1,5.57854028]
[1724804816636,0.0037794,2441.6,2441.1,5.66046527]
[1724804816945,0.0037794,2441.6,2441.4,5.57854028]
[1724804817142,0.0037794,2441.6,2441.5,2.43530391]
[1724804817499,0.0037794,2441.6,2441.5,5.43530391]
[1724804817734,0.0037794,2441.6,2441.5,5.84540391]
[1724804817934,0.00025075,2441.6,2441.5,5.84540391]
[1724804818136,0.00025075,2441.6,2441.5,6.98779833]
[1724804818337,0.00025075,2441.6,2441.5,7.53779833]
[1724804818550,0.09230497,2443.1,2441.7,0.4101]
[1724804818841,0.09230497,2443.1,2442.3,5.57854028]
[1724804818842,4.18555497,2443.1,2442.3,5.57854028]
[1724804819004,7.86798281,2444.4,2441.9,0.4101]
[1724804819005,4.09276,2443.4,2442.6,5.57854028]
[1724804819204,6.39125,2443.8,2442.9,5.57854028]
[1724804819205,0.09230497,2443.7,2442.9,5.57854028]
[1724804819404,0.09230497,2443.7,2443.0,0.55785403]
[1724804819626,4.09275,2443.4,2442.6,5.57854028]
[1724804819836,4.09242,2443.6,2442.6,5.57854028]
[1724804819837,0.09230497,2443.5,2442.6,5.57854028]
[1724804820043,0.09230497,2443.8,2442.9,5.57854028]
[1724804820253,2.2992,2444.2,2443.1,2.3803]
[1724804820254,4.09138,2444.2,2443.1,2.3803]
[1724804820403,0.09230497,2444.1,2443.2,5.66038213]
[1724804820606,0.09230497,2444.1,2443.3,0.08184185]
[1724804820806,4.09165,2444.0,2443.3,0.08184957]
[1724804821024,0.09230497,2443.9,2443.3,0.08184957]
[1724804821363,0.09230497,2443.9,2443.1,2.3803]
[1724804821364,4.09242,2443.6,2443.1,2.3803]
[1724804821546,0.09230497,2443.5,2443.1,2.3803]
[1724804821705,4.0925,2443.5,2443.1,2.3803]
[1724804821910,4.09225,2443.7,2443.1,2.3803]
[1724804822240,5.57854028,2444.8,2443.1,2.3803]
[1724804822241,4.09155,2444.1,2443.2,5.66039643]
[1724804822439,0.09230497,2444.0,2443.3,0.0818415]
[1724804822606,4.09225,2443.7,2443.1,2.3803]
[1724804822810,0.09230497,2443.6,2443.1,2.3803]
[1724804823041,0.13249196,2443.6,2443.1,2.3803]
[1724804823740,0.04018699,2443.6,2443.1,2.46215327]
[1724804823942,0.04018699,2443.6,2443.2,5.57854028]
[1724804824117,4.09186,2443.9,2443.3,0.08184156]
[1724804824317,4.09258,2443.5,2442.9,5.57854028]
[1724804824547,0.51072147,2443.8,2443.0,0.08185798]
[1724804824735,0.03765187,2443.7,2443.5,5.57854028]
[1724804824927,4.18355497,2444.3,2443.6,0.0818354]
[1724804825160,0.03775303,2444.2,2443.6,0.0818354]
[1724804825463,0.03775303,2444.2,2443.6,0.0818335]
[1724804825664,0.03775303,2444.2,2444.1,7.88804028]
[1724804825871,0.09230497,2445.2,2444.1,11.67684431]
[1724804826046,0.09230497,2445.2,2444.6,5.57854028]
[1724804826244,0.03775303,2445.1,2444.6,5.57854028]
[1724804826631,4.18180497,2445.3,2444.6,5.57854028]
[1724804826940,4.18180497,2445.3,2444.3,5.57854028]
[1724804826941,0.09230497,2445.2,2444.3,5.57854028]
[1724804827276,0.03775303,2445.1,2444.6,5.57854028]
[1724804827765,0.03775303,2445.0,2444.6,5.57854028]
[1724804827969,0.09230497,2445.2,2444.6,5.57854028]
[1724804828154,0.03775303,2445.1,2444.6,5.57854028]
[1724804828756,0.03775303,2445.1,2444.6,6.13639431]
[1724804828960,0.03775303,2445.1,2444.9,5.98864028]
[1724804829137,2.2848,2446.3,2444.9,5.57854028]
[1724804829138,4.08918,2445.5,2444.9,5.57854028]
[1724804829340,4.219518,2445.4,2444.9,5.57854028]
[1724804829674,0.130058,2445.4,2444.9,5.57854028]
[1724804829874,0.03775303,2445.4,2444.9,5.57854028]
[1724804830077,0.03775303,2445.4,2445.0,0.0817889]
[1724804830246,0.03775303,2445.4,2445.2,5.57854028]
[1724804830452,0.09230497,2446.2,2445.3,0.0817771]
[1724804830646,4.08825,2446.1,2445.3,0.0817771]
[1724804830840,0.03969733,2446.1,2445.3,2.3420771]
[1724804831170,0.03969733,2446.1,2445.5,5.57854028]
[1724804831377,0.03969733,2446.1,2445.6,0.08176816]
[1724804831969,4.08724,2446.7,2445.9,2.4654]
[1724804832184,0.04225976,2446.6,2446.3,5.57854028]
[1724804832357,4.08557,2447.7,2446.5,5.57854028]
[1724804832554,1.0,2447.8,2447.5,5.57854028]
[1724804832859,0.04228499,2447.7,2447.5,5.57854028]
[1724804833292,1.0,2447.8,2447.5,5.66024991]
[1724804833462,0.04228499,2447.6,2447.5,5.66024991]
[1724804833668,1.0,2447.8,2447.5,5.66024991]
[1724804834017,4.08565,2447.6,2447.4,2.4123]
[1724804834309,0.04228499,2447.7,2446.8,2.3055]
[1724804834310,0.09230497,2447.5,2446.8,2.3055]
[1724804834452,0.09230497,2447.5,2445.6,5.57854028]
[1724804834453,4.08646,2447.2,2446.4,2.3055]
[1724804834894,4.08675,2447.0,2446.4,2.3055]
[1724804835052,0.04228499,2447.1,2446.6,5.57854028]
[1724804835390,0.04228499,2447.0,2446.6,5.57854028]
[1724804835589,4.99588697,2447.2,2446.6,5.57854028]
[1724804835814,4.08676,2447.0,2446.4,2.3055]
[1724804835981,0.09230497,2446.9,2446.4,2.3055]
[1724804836159,4.68292317,2447.0,2446.4,2.3055]
[1724804836358,0.04228499,2446.9,2446.4,2.3055]
[1724804837182,0.04228499,2446.9,2446.5,0.08173847]
[1724804837470,3.413,2447.8,2446.5,0.08173847]
[1724804837471,4.08603,2447.4,2446.5,0.08173749]
[1724804837691,0.04466782,2446.8,2446.5,0.08173749]
[1724804837862,3.09230497,2447.3,2446.5,0.08173749]
[1724804838208,4.89644847,2447.2,2446.5,0.08173593]
[1724804838499,0.04466782,2447.1,2446.4,2.3055]
[1724804838796,4.13113782,2447.1,2446.4,2.3055]
[1724804838999,4.08675,2447.0,2446.1,8.85089143]
[1724804839176,4.08675,2447.0,2446.2,0.08174224]
[1724804839375,0.13697279,2446.9,2446.1,8.85089143]
[1724804839632,4.08636,2447.2,2446.2,0.08174225]
[1724804839831,0.04317889,2446.8,2446.2,0.08174225]
[1724804840134,4.08597,2447.4,2446.2,0.08174225]
[1724804840135,4.72696,2447.6,2446.6,2.3179]
[1724804840337,0.0417396,2447.5,2446.7,0.08172351]
[1724804840630,4.08618,2447.3,2446.7,0.08172351]
[1724804840836,4.17864497,2447.2,2446.6,3.0]
[1724804841034,4.17864497,2447.2,2446.6,0.08173694]
[1724804841035,0.04357986,2447.2,2446.6,0.08173694]
[1724804841411,0.09230497,2447.7,2446.7,2.3179]
[1724804841749,5.08535,2447.8,2446.7,2.3179]
[1724804841750,0.04357986,2447.6,2446.9,5.85089143]
[1724804841901,5.08535,2447.8,2447.0,0.08171391]
[1724804842103,0.04357986,2447.7,2447.0,0.08171391]
[1724804842307,0.04357986,2447.7,2447.0,0.69897081]
[1724804842544,0.04357986,2447.7,2447.1,2.3179]
[1724804842844,1.0,2447.8,2447.2,0.0817033]
[1724804843209,0.04357986,2447.7,2447.2,0.0817033]
[1724804843409,0.04357986,2447.7,2447.3,5.85089143]
[1724804843637,1.0,2447.8,2447.3,5.85089143]
[1724804843939,1.0,2447.8,2447.4,0.08169995]
[1724804844105,0.04357986,2447.7,2447.4,3.0]
[1724804844305,1.0,2447.8,2447.6,2.4082]
[1724804844545,1.0,2447.8,2447.7,6.34268743]
[1724804844853,1.0,2447.8,2447.7,5.85089143]
[1724804845005,1.0,2447.8,2447.6,2.4082]
[1724804845205,1.0,2447.8,2447.3,5.85089143]
[1724804845408,0.13588483,2447.7,2446.9,5.85089143]
[1724804845605,0.13588483,2447.7,2446.8,2.4082]
[1724804845825,0.13588483,2447.7,2446.9,0.0817179]
[1724804845826,0.04357986,2447.7,2446.9,0.0817179]
[1724804846040,0.04357986,2447.7,2446.9,0.95680883]
[1724804846269,0.04357986,2447.7,2447.0,2.36031531]
[1724804846404,0.04357986,2447.7,2447.0,2.2786]
[1724804846601,4.22149483,2447.7,2447.0,2.36031479]
[1724804846804,4.65133934,2447.7,2447.1,0.08171576]
[1724804847036,0.56572934,2447.7,2447.1,0.08171576]
[1724804847269,0.04357986,2447.7,2447.1,0.08171576]
[1724804848065,0.04357986,2447.7,2447.2,5.85089143]
[1724804848261,0.04357986,2447.7,2447.3,3.08170375]
[1724804848573,0.04555701,2447.6,2447.3,3.08170375]
[1724804848773,1.0,2447.8,2447.3,3.97496327]
[1724804849158,1.0,2447.8,2447.6,5.85089143]
[1724804849540,1.0,2447.8,2447.7,3.08169693]
[1724804849644,1.0,2447.8,2447.7,3.07113195]
[1724804849848,1.0,2447.8,2447.7,6.62493429]
[1724804850057,6.39413,2449.4,2447.7,7.17493429]
[1724804850058,0.09230497,2449.1,2447.7,7.17493429]
[1724804850262,0.09230497,2449.3,2448.3,2.2515]
[1724804850460,4.0824,2449.6,2448.4,0.08166832]
[1724804850677,4.0824,2449.6,2448.6,5.85089143]
[1724804850678,4.17486497,2449.5,2448.6,5.85089143]
[1724804850839,4.17486497,2449.5,2448.7,0.08165799]
[1724804851375,4.08205,2449.8,2448.7,3.71592293]
[1724804851774,4.17453497,2449.7,2448.7,3.71592293]
[1724804851954,4.08205,2449.8,2448.7,3.71592293]
[1724804852150,0.09230497,2449.9,2449.1,5.85089143]
[1724804852352,6.3377,2450.2,2449.1,5.85089143]
[1724804852353,4.17387497,2450.1,2449.2,3.08164055]
[1724804852552,8.16338,2450.0,2449.3,0.08163707]
[1724804852876,8.16338,2450.0,2448.6,2.7776]
[1724804852877,2.467,2449.8,2448.6,2.7776]
[1724804853047,2.467,2449.8,2447.0,0.05]
[1724804853048,4.08372,2448.8,2448.2,2.3675]
[1724804853440,4.08372,2448.8,2448.3,0.08167842]
[1724804853637,8.16681,2449.0,2448.2,2.3675]
[1724804853838,4.0838,2448.7,2448.2,2.3675]
[1724804854077,0.09230497,2448.6,2447.8,8.21839143]
[1724804854379,4.0844,2448.4,2447.8,8.21839143]
[1724804854578,4.08413,2448.5,2447.8,8.21839143]
[1724804854750,0.09230497,2448.6,2447.8,8.21839143]
[1724804854945,4.0844,2448.4,2447.8,8.21839143]
[1724804855140,4.08446,2448.3,2447.8,8.21839143]
[1724804855364,4.08415,2448.5,2447.8,8.21839143]
[1724804855563,4.17668497,2448.4,2447.8,8.21839143]
[1724804855969,0.04703621,2448.3,2447.8,8.21839143]
[1724804856359,0.04703621,2448.3,2447.7,0.4101]
[1724804856558,4.17702497,2448.2,2447.5,0.4101]
[1724804856960,0.04703621,2448.1,2447.5,0.4101]
[1724804857285,0.04703621,2448.1,2447.6,0.0816991]
[1724804857484,0.04703621,2448.1,2447.5,0.4101]
[1724804857844,0.42237212,2448.3,2447.5,3.4101]
[1724804858050,0.04546834,2448.0,2447.5,3.4101]
[1724804858274,4.50695212,2448.3,2447.5,3.4101]
[1724804858470,0.04546834,2447.9,2447.5,3.4101]
[1724804858676,4.08464,2448.2,2447.5,3.4101]
[1724804858874,4.08464,2448.2,2447.0,6.26099143]
[1724804858875,4.13085834,2447.8,2447.0,6.26099143]
[1724804859150,0.04546834,2447.7,2447.1,0.08171334]
[1724804859362,4.08505,2448.0,2447.1,0.08171334]
[1724804859681,0.04546834,2447.9,2447.5,2.3748]
[1724804859971,2.3159,2448.5,2447.5,0.4101]
[1724804860171,4.08523,2447.9,2447.0,8.54319143]
[1724804860505,4.08523,2447.9,2446.3,7.37]
[1724804860506,2.8247,2447.8,2446.6,8.13309143]
[1724804860796,4.08627,2447.3,2446.6,2.2822]
[1724804860952,4.08627,2447.3,2446.6,2.51042]
[1724804861152,0.04546834,2447.2,2446.7,0.4101]
[1724804861959,4.08558,2447.7,2446.7,0.4101]
[1724804862182,0.04546834,2447.6,2446.9,2.4014]
[1724804862494,4.08452,2448.3,2447.0,6.34270717]
[1724804862495,4.08448,2448.3,2447.0,6.34270717]
[1724804862674,4.08448,2448.3,2447.1,4.17441072]
[1724804862681,0.04546834,2447.5,2447.1,4.17441072]
[1724804862857,4.08368,2448.8,2447.0,0.4101]
[1724804862858,4.08565,2447.6,2447.0,0.4101]
[1724804863200,4.08505,2448.0,2447.1,0.08171605]
[1724804863691,4.13062834,2447.9,2447.1,0.9151168]
[1724804864093,0.04546834,2447.9,2447.1,0.9151168]
[1724804864296,0.04546834,2447.9,2447.1,3.9151168]
[1724804864457,4.08531,2447.8,2447.1,3.9151168]
[1724804864675,4.08531,2447.8,2446.9,2.4014]
[1724804864676,8.1714,2447.6,2446.9,2.4014]
[1724804864862,4.08582,2447.5,2446.7,0.4096]
[1724804865066,8.17176,2447.5,2446.7,0.4096]
[1724804865308,4.13142834,2447.4,2446.8,0.62604914]
[1724804865477,4.13142834,2447.4,2446.4,2.3605]
[1724804865478,4.08641,2447.2,2446.4,2.3605]
[1724804865672,4.08614,2447.3,2446.4,2.3605]
[1724804865878,0.04369424,2447.1,2446.4,2.3605]
[1724804866075,4.08623,2447.3,2446.5,0.27701]
[1724804866284,2.4487,2447.7,2446.6,0.08172972]
[1724804866285,0.04369424,2447.0,2446.6,0.08172972]
[1724804866472,6.53423,2447.7,2446.6,0.08172972]
[1724804866674,0.04369424,2446.9,2446.6,5.93262115]
[1724804866877,8.17111,2447.7,2446.7,0.62096312]
[1724804867102,4.08553,2447.7,2446.7,0.62096312]
[1724804867279,0.04189429,2447.6,2446.7,3.62096312]
[1724804867481,0.04189429,2447.6,2446.8,1.76590786]
[1724804867693,4.08583,2447.5,2446.8,1.68418546]
[1724804867889,0.04189429,2447.6,2446.8,1.76590794]
[1724804868092,0.04208319,2447.4,2447.0,2.2669]
[1724804868406,4.08522,2447.9,2447.0,11.52739143]
[1724804868606,4.08554,2447.7,2447.1,1.20579063]
[1724804868797,4.0858,2447.5,2446.9,0.53051486]
[1724804868996,0.04027633,2447.3,2446.8,3.0]
[1724804869730,4.08488,2448.1,2447.0,5.85089143]
[1724804869928,4.08507,2448.0,2447.1,3.67496666]
[1724804870225,4.08532,2447.8,2447.1,4.08456666]
[1724804870425,4.08569,2447.6,2447.0,5.98899394]
[1724804870616,0.04035192,2447.5,2447.0,3.0]
[1724804870813,4.08597,2447.4,2446.9,5.54672635]
[1724804871001,0.04035192,2447.3,2446.7,2.2669]
[1724804871202,4.08581,2447.5,2446.8,0.35489712]
[1724804871403,0.04035192,2447.4,2446.9,3.55423878]
[1724804871591,0.04035192,2447.4,2446.8,0.35489712]
[1724804871790,0.04035192,2447.4,2446.9,1.769558]
[1724804872019,0.04035192,2447.4,2447.0,1.4215918]
[1724804872223,8.17206,2447.4,2446.9,0.34785793]
[1724804872433,0.04035192,2447.3,2446.8,1.62127932]
[1724804872623,0.04035192,2447.3,2446.9,1.42174559]
[1724804872824,0.04035192,2447.3,2446.8,0.4096]
[1724804872825,4.0868,2446.9,2446.8,0.4096]
[1724804873030,4.12721192,2446.9,2446.4,0.8567822]
[1724804873191,4.12721192,2446.9,2446.4,0.38482816]
[1724804873192,4.12715192,2446.9,2446.4,0.38482816]
[1724804873388,4.12715192,2446.9,2446.5,1.42199521]
[1724804873634,4.12715192,2446.9,2446.4,0.38482816]
[1724804873790,4.12715192,2446.9,2446.5,1.42203843]
[1724804873992,4.08714,2446.7,2446.3,0.8567822]
[1724804874192,4.08714,2446.7,2446.2,1.2663822]
[1724804874393,0.04035192,2446.6,2446.3,4.41196816]
[1724804874630,4.0868,2446.9,2446.4,3.55518596]
[1724804874631,4.08708,2446.8,2446.4,3.55518596]
[1724804874828,0.04035192,2446.7,2446.5,1.42203644]
[1724804875000,4.08657,2447.1,2446.4,0.58799061]
[1724804875200,8.28997131,2451.9,2446.5,2.21101792]
[1724804875201,0.04035192,2447.0,2446.5,2.21101792]
[1724804875427,5.54672635,2448.2,2446.6,3.55483196]
[1724804875428,4.08641,2447.2,2446.6,3.55483196]
[1724804875646,0.04035192,2447.1,2446.5,1.64585168]
[1724804875817,0.04035192,2447.1,2446.6,3.90638601]
[1724804875991,0.04035192,2447.1,2446.6,0.35159135]
[1724804876803,4.0869,2446.9,2446.4,1.44477281]
[1724804877002,4.0869,2446.9,2446.2,8.6363822]
[1724804877003,0.03967148,2446.8,2446.2,8.6363822]
[1724804877238,0.03967148,2446.8,2446.3,1.42204288]
[1724804877239,2.2858,2446.8,2446.3,1.42204288]
[1724804877426,2.2858,2446.8,2445.9,0.8567822]
[1724804877427,4.08812,2446.2,2445.9,0.8567822]
[1724804877732,4.08774,2446.4,2445.7,0.8567822]
[1724804877949,4.08774,2446.4,2445.8,1.42229267]
[1724804877950,4.6379,2446.3,2445.8,1.42229267]
[1724804878121,4.08739,2446.6,2445.8,0.22790749]
[1724804878336,0.0397597,2446.2,2445.9,0.08176339]
[1724804878645,4.08733,2446.6,2445.9,2.55756339]
[1724804878821,0.0397597,2446.5,2446.0,0.81042897]
[1724804879023,4.08674,2447.0,2446.1,0.08175014]
[1724804879253,0.03704942,2446.9,2446.1,5.96527573]
[1724804879477,4.08638,2447.2,2446.2,4.23184325]
[1724804879658,4.08638,2447.2,2446.3,0.08174319]
[1724804879659,0.03693592,2446.8,2446.3,0.08174319]